bitfinex/quotes_SOLUSD_20220302
["timestamp","ask_amount","ask_price","bid_price","bid_amount"]
[1646202828609,171.00186041,102.5,102.41,22.51851224]
[1646202828811,171.00186041,102.5,102.4,23.4987]
[1646202829009,3.904,102.49,102.4,23.4987]
[1646202829712,53.39982379,102.48,102.41,9.37872894]
[1646202831028,53.39982379,102.48,102.41,24.02422894]
[1646202831233,22.6229,102.5,102.41,24.02422894]
[1646202831628,22.6229,102.5,102.41,120.40422894]
[1646202831831,24.4702,102.51,102.41,131.94422894]
[1646202832431,80.07157536,102.51,102.41,131.94422894]
[1646202832835,47.3669,102.53,102.41,131.94422894]
[1646202833035,47.3669,102.53,102.41,136.94422894]
[1646202833633,47.3669,102.53,102.41,155.01962894]
[1646202833833,57.6016748,102.52,102.41,160.01962894]
[1646202834234,57.6016748,102.52,102.41,155.01962894]
[1646202834433,57.6016748,102.52,102.42,105.283]
[1646202834637,57.6016748,102.52,102.45,14.6401]
[1646202835837,157.8846748,102.52,102.43,14.6421]
[1646202836237,61.5046748,102.52,102.43,14.6421]
[1646202836837,57.6016748,102.52,102.43,14.6421]
[1646202837838,57.6016748,102.52,102.43,26.1821]
[1646202838637,57.6016748,102.52,102.43,122.5621]
[1646202838839,26.4788103,102.55,102.43,122.5621]
[1646202838840,3.903,102.55,102.43,122.5621]
[1646202839038,56.7685,102.57,102.44,0.18881339]
[1646202839238,52.8665,102.57,102.47,14.635]
[1646202839841,47.59774981,102.56,102.47,14.635]
[1646202841941,47.59774981,102.56,102.47,26.175]
[1646202842843,47.59774981,102.56,102.47,14.635]
[1646202843241,47.59774981,102.56,102.47,26.175]
[1646202844445,147.87774981,102.56,102.47,26.175]
[1646202844644,147.87774981,102.56,102.47,14.635]
[1646202845043,170.45356011,102.56,102.47,14.635]
[1646202845247,249.55737658,102.56,102.43,35.4649]
[1646202845445,96.38,102.54,102.43,35.4649]
[1646202845646,157.31749507,102.53,102.43,35.4649]
[1646202846048,152.31749507,102.53,102.43,35.4649]
[1646202846247,157.31749507,102.53,102.43,35.4649]
[1646202846946,111.023,102.52,102.43,50.1068]
[1646202847146,48.96282099,102.51,102.43,50.1068]
[1646202848649,159.98692099,102.51,102.43,50.1068]
[1646202848849,168.34784962,102.51,102.42,22.6215]
[1646202849048,168.34784962,102.51,102.41,9.37872894]
[1646202849248,96.38,102.49,102.41,9.37872894]
[1646202849448,48.91841851,102.48,102.41,9.37872894]
[1646202852958,48.91841851,102.48,102.41,24.02432894]
[1646202853154,48.91841851,102.48,102.41,35.56432894]
[1646202853957,48.91841851,102.48,102.41,20.91872894]
[1646202855957,48.91841851,102.48,102.41,11.54]
[1646202856159,63.56651851,102.48,102.41,11.54]
[1646202856958,63.56651851,102.48,102.41,11.04]
[1646202859059,63.56651851,102.48,102.4,22.79867257]
[1646202859659,63.56651851,102.48,102.4,34.33867257]
[1646202860567,159.94651851,102.48,102.38,97.04258204]
[1646202860761,161.4783642,102.48,102.38,63.256]
[1646202861362,221.62815935,102.48,102.38,14.6492]
[1646202861564,97.8661899,102.46,102.36,35.29658204]
[1646202861765,14.654,102.44,102.36,27.7022]
[1646202861963,46.7070899,102.46,102.36,27.7022]
[1646202862164,45.2209,102.46,102.36,146.32878204]
[1646202862565,91.77044884,102.46,102.37,7.22470238]
[1646202862766,91.77044884,102.46,102.38,11.54]
[1646202862972,91.77044884,102.46,102.39,2.20786919]
[1646202864469,91.77044884,102.46,102.39,16.85646919]
[1646202864670,44.0272,102.49,102.39,113.23646919]
[1646202864886,91.565,102.49,102.39,16.85646919]
[1646202865793,46.96457642,102.48,102.39,16.85646919]
[1646202867086,46.96457642,102.48,102.39,31.69606919]
[1646202868089,45.96457642,102.48,102.39,31.69606919]
[1646202868692,218.81780563,102.48,102.37,18.5556]
[1646202868994,28.6039,102.47,102.37,18.5556]
[1646202869189,124.9839,102.47,102.37,18.5556]
[1646202869794,59.40895591,102.46,102.38,9.28818789]
[1646202869992,14.6525,102.45,102.38,9.28818789]
[1646202870293,54.6819226,102.44,102.38,9.28818789]
[1646202871093,54.6819226,102.44,102.38,23.93818789]
[1646202871692,54.6819226,102.44,102.38,14.65]
[1646202871894,54.6819226,102.44,102.37,15.445]
[1646202872794,54.6819226,102.44,102.37,23.46353978]
[1646202873196,54.6819226,102.44,102.37,15.445]
[1646202873694,54.6819226,102.44,102.37,3.905]
[1646202876401,54.6819226,102.44,102.38,3.08878127]
[1646202878106,54.6819226,102.44,102.38,17.73888127]
[1646202878506,6.848,102.45,102.38,17.73888127]
[1646202879505,53.5899723,102.44,102.38,17.73888127]
[1646202879704,53.5899723,102.44,102.38,26.1901]
[1646202879904,53.5899723,102.44,102.36,38.8067]
[1646202880105,10.754,102.45,102.37,107.92]
[1646202880304,6.848,102.45,102.38,0.10792177]
[1646202880506,6.848,102.45,102.39,107.92]
[1646202880705,6.848,102.45,102.4,0.10792177]
[1646202880903,6.848,102.45,102.41,11.54]
[1646202883506,6.848,102.45,102.42,2.2487528]
[1646202883709,6.848,102.45,102.42,13.7887528]
[1646202883909,6.848,102.45,102.43,2.15755065]
[1646202884108,6.848,102.45,102.43,13.69755065]
[1646202884411,6.848,102.45,102.43,11.54]
[1646202884809,6.848,102.45,102.41,11.54]
[1646202887512,57.83361862,102.44,102.41,11.54]
[1646202888113,6.848,102.45,102.41,11.54]
[1646202889315,6.848,102.45,102.41,21.89362266]
[1646202893120,6.848,102.45,102.42,2.54904003]
[1646202893318,6.848,102.45,102.43,0.43214305]
[1646202893518,23.0339,102.49,102.43,11.97214305]
[1646202894122,23.0339,102.49,102.43,26.61464305]
[1646202894922,75.7831246,102.49,102.43,26.61464305]
[1646202896324,75.7831246,102.49,102.43,11.97214305]
[1646202898743,51.05345359,102.47,102.43,11.97214305]
[1646202902550,47.0719,102.49,102.43,11.97214305]
[1646202903250,47.0719,102.49,102.43,0.43214305]
[1646202903450,47.51663332,102.48,102.43,0.43214305]
[1646202904050,145.43467975,102.48,102.43,0.43214305]
[1646202904254,145.43467975,102.48,102.39,50.1214]
[1646202904453,149.33867975,102.48,102.39,50.1214]
[1646202905050,162.44933332,102.48,102.4,7.75764627]
[1646202905453,164.67676574,102.48,102.39,24.1614]
[1646202905653,274.51703482,102.48,102.38,24.6544]
[1646202905852,286.05703482,102.48,102.38,24.6544]
[1646202906352,111.0341,102.45,102.36,27.997]
[1646202906553,44.35269639,102.44,102.36,38.27085909]
[1646202907055,69.26049639,102.44,102.36,38.27085909]
[1646202907755,83.91469639,102.44,102.36,52.92365909]
[1646202908156,83.91469639,102.44,102.36,49.01965909]
[1646202909756,69.26049639,102.44,102.36,49.01965909]
[1646202912461,3.906,102.46,102.37,107.92]
[1646202912660,22.8485,102.47,102.38,0.12286555]
[1646202912862,3.904,102.48,102.4,14.6455]
[1646202913064,27.7495,102.5,102.41,108.0726366]
[1646202913261,22.7495,102.5,102.41,11.6926366]
[1646202913461,73.86505665,102.5,102.41,107.92]
[1646202913660,73.86505665,102.5,102.41,11.54]
[1646202913862,73.86505665,102.5,102.43,14.6429]
[1646202914565,73.86505665,102.5,102.42,11.54]
[1646202914962,96.38,102.49,102.42,11.54]
[1646202915164,51.51001152,102.48,102.4,54.3376]
[1646202915362,51.51001152,102.48,102.4,65.8776]
[1646202916364,147.89001152,102.48,102.4,51.0549]
[1646202916666,166.55745768,102.48,102.4,11.54]
[1646202916864,191.02619879,102.48,102.39,28.5929]
[1646202917067,191.02619879,102.48,102.39,3.904]
[1646202918064,3.904,102.47,102.39,3.904]
[1646202918264,59.98807045,102.46,102.39,3.904]
[1646202920869,59.98807045,102.46,102.37,23.6044]
[1646202920870,172.68355425,102.46,102.37,23.6044]
[1646202921469,158.03175425,102.46,102.37,23.6044]
[1646202921873,2.22743242,102.45,102.37,23.6044]
[1646202922070,111.0346,102.44,102.37,23.6044]
[1646202922274,56.4503968,102.43,102.37,23.6044]
[1646202922478,56.4503968,102.43,102.36,26.1739]
[1646202923275,56.4503968,102.43,102.36,36.19555201]
[1646202923674,56.4503968,102.43,102.36,26.1739]
[1646202925173,60.3563968,102.43,102.36,26.1739]
[1646202925974,96.38,102.41,102.36,1.51]
[1646202926173,154.29,102.41,102.36,1.51]
[1646202926374,0.11472435,102.39,102.36,1.51]
[1646202926573,2.22743242,102.4,102.36,1.51]
[1646202926772,2.22743242,102.39,102.36,1.51]
[1646202926973,60.06839694,102.38,102.36,1.51]
[1646202927376,2.22743242,102.37,102.36,1.51]
[1646202927577,171.11149694,102.38,102.3,22.5665]
[1646202928276,173.33892936,102.38,102.27,11.54]
[1646202928478,180.15930965,102.38,102.26,58.36572254]
[1646202928677,96.38,102.36,102.26,57.86572254]
[1646202928978,111.0472,102.35,102.26,46.32572254]
[1646202929277,59.76714587,102.34,102.26,46.32572254]
[1646202929777,59.76714587,102.34,102.27,1.78091016]
[1646202930176,59.76714587,102.34,102.25,14.972]
[1646202930477,170.81594587,102.34,102.24,57.0559]
[1646202930679,174.74604054,102.34,102.24,34.4828]
[1646202930879,174.74604054,102.34,102.24,22.9428]
[1646202931078,179.74604054,102.34,102.24,22.9428]
[1646202931279,237.65604054,102.34,102.22,11.54]
[1646202931480,155.95190272,102.32,102.21,9.35658189]
[1646202931680,112.98606997,102.3,102.2,32.7956]
[1646202931880,112.95101905,102.3,102.2,10.0]
[1646202932084,5.0,102.28,102.2,10.0]
[1646202932583,7.22743242,102.28,102.2,10.0]
[1646202932782,57.8992974,102.27,102.2,10.0]
[1646202932980,14.6804,102.26,102.2,10.0]
[1646202933181,44.37317096,102.25,102.2,10.0]
[1646202934382,59.05527096,102.25,102.2,10.0]
[1646202934981,88.82267873,102.25,102.2,10.0]
[1646202935183,89.91067873,102.25,102.2,10.0]
[1646202935383,84.91067873,102.25,102.2,10.0]
[1646202936088,87.13811115,102.25,102.2,10.0]
[1646202936284,88.82267873,102.25,102.2,10.0]
[1646202936483,84.91067873,102.25,102.2,10.0]
[1646202936889,59.05527096,102.25,102.2,10.0]
[1646202937285,62.96727096,102.25,102.2,10.0]
[1646202937889,59.05527096,102.25,102.2,10.0]
[1646202938084,23.86207444,102.29,102.21,125.0]
[1646202938386,5.0,102.28,102.22,0.41842139]
[1646202938584,49.4613,102.35,102.22,56.5524565]
[1646202938785,3.91,102.34,102.22,59.10149653]
[1646202938983,3.91,102.34,102.22,56.5524565]
[1646202939184,44.90656009,102.33,102.23,10.77564801]
[1646202939384,3.91,102.32,102.23,59.53722939]
[1646202939585,3.91,102.32,102.24,11.54]
[1646202939884,3.91,102.34,102.24,26.2076]
[1646202940387,3.91,102.34,102.24,74.96918138]
[1646202940884,3.91,102.34,102.25,15.96263941]
[1646202941085,3.91,102.34,102.26,11.54]
[1646202941285,49.4613,102.35,102.26,11.54]
[1646202941486,3.908,102.34,102.26,11.54]
[1646202941888,55.79456229,102.33,102.27,10.12392753]
[1646202942283,49.4613,102.35,102.27,10.12392753]
[1646202942887,26.77026201,102.38,102.27,118.04392753]
[1646202943088,24.8617,102.38,102.27,21.66392753]
[1646202943283,49.00802383,102.37,102.27,21.66392753]
[1646202943485,49.00802383,102.37,102.27,26.66392753]
[1646202943683,49.00802383,102.37,102.27,74.71991991]
[1646202944086,49.00802383,102.37,102.27,84.38371991]
[1646202944286,49.00802383,102.37,102.27,38.87676756]
[1646202945288,145.38802383,102.37,102.27,38.87676756]
[1646202945486,145.38802383,102.37,102.27,36.32772753]
[1646202945690,145.38802383,102.37,102.27,21.66392753]
[1646202946089,216.42421723,102.37,102.23,24.0887]
[1646202946389,160.97688657,102.35,102.23,24.0887]
[1646202946591,107.92,102.34,102.23,24.0887]
[1646202946988,53.33525314,102.33,102.24,9.52153512]
[1646202947190,149.71525314,102.33,102.24,9.52153512]
[1646202947390,53.33525314,102.33,102.24,9.52153512]
[1646202947588,53.33525314,102.33,102.24,24.18983512]
[1646202948088,100.29,102.34,102.24,132.10983512]
[1646202948089,3.91,102.34,102.24,132.10983512]
[1646202948291,24.0712,102.36,102.25,3.91]
[1646202948498,24.0712,102.36,102.25,15.45]
[1646202948689,24.0712,102.36,102.25,20.45]
[1646202949089,24.0712,102.36,102.26,2.41893645]
[1646202949289,24.0712,102.36,102.27,3.908]
[1646202949489,24.0712,102.36,102.28,9.52153512]
[1646202949892,24.8617,102.38,102.28,9.52153512]
[1646202950491,24.8617,102.38,102.28,117.44153512]
[1646202950690,26.5119,102.39,102.28,35.72413512]
[1646202950894,22.6039,102.39,102.29,96.38]
[1646202951094,3.908,102.4,102.3,107.92]
[1646202951291,98.19973871,102.39,102.29,7.54904003]
[1646202951492,3.908,102.38,102.28,9.52153512]
[1646202951894,59.06126536,102.38,102.28,24.18443512]
[1646202952599,3.908,102.38,102.28,132.10443512]
[1646202952798,51.8392,102.39,102.28,134.65347515]
[1646202952996,47.9312,102.39,102.28,134.65347515]
[1646202953195,28.27070535,102.41,102.28,134.65347515]
[1646202953395,2.22743242,102.38,102.28,24.18443512]
[1646202953591,62.63273006,102.37,102.28,9.52153512]
[1646202953994,2.22743242,102.36,102.28,9.52153512]
[1646202954194,50.75944487,102.35,102.28,9.52153512]
[1646202954393,2.22743242,102.36,102.28,9.52153512]
[1646202955210,57.58623194,102.36,102.28,9.52153512]
[1646202957413,96.38,102.35,102.28,9.52153512]
[1646202957612,58.1235882,102.34,102.28,9.52153512]
[1646202958616,58.1235882,102.34,102.27,14.6645]
[1646202958815,58.1235882,102.34,102.26,45.8344]
[1646202959017,156.73102062,102.34,102.26,45.8344]
[1646202959215,192.62667424,102.34,102.26,45.8344]
[1646202959616,192.62667424,102.34,102.26,55.34491127]
[1646202960021,207.29657424,102.34,102.26,55.34491127]
[1646202960820,207.29657424,102.34,102.26,45.8344]
[1646202961420,241.86156365,102.34,102.23,24.0887]
[1646202961818,299.77156365,102.34,102.23,34.29866689]
[1646202962022,301.40064955,102.34,102.23,34.29866689]
[1646202962521,301.40064955,102.34,102.21,46.2336]
[1646202962721,301.40064955,102.34,102.22,14.6718]
[1646202962722,96.38,102.32,102.22,14.6718]
[1646202962923,14.6736,102.31,102.22,14.6718]
[1646202963524,53.5188205,102.3,102.23,10.01209707]
[1646202964123,3.911,102.32,102.23,121.06319707]
[1646202964325,3.911,102.32,102.23,24.68319707]
[1646202964526,58.4576,102.33,102.23,27.2322371]
[1646202964725,15.45,102.32,102.23,24.68319707]
[1646202964924,111.83,102.32,102.23,24.68319707]
[1646202965125,44.70768396,102.31,102.23,24.68319707]
[1646202965925,141.08768396,102.31,102.23,24.68319707]
[1646202966728,44.70768396,102.31,102.23,24.68319707]
[1646202966928,141.08768396,102.31,102.23,24.68319707]
[1646202967130,44.70768396,102.31,102.23,24.68319707]
[1646202967429,30.1235,102.32,102.23,24.68319707]
[1646202967430,3.911,102.32,102.23,24.68319707]
[1646202967632,46.9176,102.33,102.23,24.68319707]
[1646202968230,50.8276,102.33,102.23,24.68319707]
[1646202968530,51.39349931,102.32,102.23,24.68319707]
[1646202968933,51.39349931,102.32,102.23,121.06319707]
[1646202969532,51.39349931,102.32,102.23,24.68319707]
[1646202969732,46.9176,102.33,102.24,11.54]
[1646202969934,46.9176,102.33,102.26,14.6649]
[1646202970135,96.38,102.35,102.26,14.6649]
[1646202970732,60.40568332,102.34,102.27,1.9283745]
[1646202972134,60.40568332,102.34,102.27,14.6652]
[1646202973559,156.78568332,102.34,102.25,37.5382]
[1646202973739,160.69568332,102.34,102.25,37.5382]
[1646202973939,156.78568332,102.34,102.25,37.5382]
[1646202974539,60.40568332,102.34,102.26,10.63927463]
[1646202975139,171.45468332,102.34,102.26,10.63927463]
[1646202975340,75.07468332,102.34,102.26,10.63927463]
[1646202976542,77.30211574,102.34,102.26,10.63927463]
[1646202976746,75.07468332,102.34,102.26,10.63927463]
[1646202978044,171.45468332,102.34,102.26,10.63927463]
[1646202978743,171.45468332,102.34,102.25,37.5382]
[1646202978944,171.45468332,102.34,102.25,22.8706]
[1646202979148,3.91,102.33,102.25,22.8706]
[1646202979350,114.9603,102.33,102.25,22.8706]
[1646202979545,151.25903814,102.33,102.21,74.70664003]
[1646202979746,96.38,102.31,102.22,31.26117252]
[1646202980044,19.58257131,102.3,102.22,31.26117252]
[1646202980646,130.63697131,102.3,102.22,37.5526]
[1646202980846,130.63697131,102.3,102.22,22.8806]
[1646202981066,132.8709566,102.3,102.21,23.2559]
[1646202981266,132.8709566,102.3,102.2,10.0]
[1646202981267,98.08089849,102.28,102.2,10.0]
[1646202981467,109.62089849,102.28,102.2,10.0]
[1646202981667,144.73258868,102.27,102.2,10.0]
[1646202982065,52.26458868,102.27,102.2,10.0]
[1646202982266,155.06058868,102.27,102.2,10.0]
[1646202982468,58.68058868,102.27,102.2,10.0]
[1646202983067,185.2257878,102.27,102.2,10.0]
[1646202983267,243.1357878,102.27,102.2,10.0]
[1646202983667,185.2257878,102.27,102.2,10.0]
[1646202983869,183.51377397,102.27,102.2,10.0]
[1646202984566,87.13377397,102.27,102.2,10.0]
[1646202984768,183.51377397,102.27,102.2,10.0]
[1646202985368,87.13377397,102.27,102.2,10.0]
[1646202985968,69.44778868,102.27,102.2,10.0]
[1646202986170,48.35258868,102.27,102.2,10.0]
[1646202987170,48.35258868,102.27,102.2,24.6757]
[1646202988971,48.35258868,102.27,102.2,10.0]
[1646202989172,52.26458868,102.27,102.2,10.0]
[1646202989577,48.35258868,102.27,102.2,10.0]
[1646202989974,63.03098868,102.27,102.2,10.0]
[1646202990376,48.35258868,102.27,102.2,10.0]
[1646202990780,3.912,102.29,102.2,106.38]
[1646202991082,76.03200414,102.32,102.2,106.38]
[1646202991083,3.912,102.31,102.2,120.46904003]
[1646202991276,24.6214,102.32,102.21,119.53209769]
[1646202991479,24.6214,102.32,102.24,14.6687]
[1646202991876,71.01744892,102.32,102.24,14.6687]
[1646202994578,27.0697,102.33,102.24,111.0487]
[1646202994883,3.91,102.34,102.24,113.59774003]
[1646202995079,48.2482,102.36,102.26,96.38]
[1646202995277,48.2482,102.36,102.28,14.6637]
[1646202995478,23.7171,102.36,102.28,14.6637]
[1646202995678,151.35096015,102.35,102.26,2.54904003]
[1646202995879,58.87896015,102.35,102.25,23.7188]
[1646202996079,78.9799471,102.35,102.25,23.7188]
[1646202996478,54.97096015,102.35,102.26,14.6672]
[1646202996678,23.7171,102.36,102.27,96.38]
[1646202996878,3.91,102.37,102.28,96.38]
[1646202997080,3.908,102.38,102.28,110.46904003]
[1646202997586,46.891,102.39,102.29,17.21074003]
[1646202997784,57.79990977,102.38,102.29,17.21074003]
[1646202998981,57.79990977,102.38,102.29,28.75074003]
[1646202999683,57.79990977,102.38,102.29,33.75074003]
[1646203000581,3.908,102.41,102.3,2.54904003]
[1646203000782,5.0,102.43,102.3,2.54904003]
[1646203000783,55.6574,102.43,102.32,111.0347]
[1646203000981,50.6574,102.43,102.32,122.5747]
[1646203001581,59.88652135,102.42,102.32,49.4553]
[1646203001982,102.58975586,102.42,102.32,49.4553]
[1646203003885,102.58975586,102.42,102.32,145.8353]
[1646203004183,102.58975586,102.42,102.32,49.4553]
[1646203007290,96.38,102.41,102.32,49.4553]
[1646203007493,60.07316816,102.4,102.32,37.9153]
[1646203010593,57.36143451,102.41,102.32,37.9153]
[1646203010795,3.907,102.42,102.33,11.54]
[1646203010992,83.24872029,102.43,102.34,14.6542]
[1646203011595,56.93707941,102.42,102.34,14.6542]
[1646203011793,56.93707941,102.42,102.34,111.0342]
[1646203011992,56.93707941,102.42,102.34,14.6542]
[1646203013491,68.59272029,102.43,102.34,14.6542]
[1646203013697,20.86091422,102.44,102.34,111.0342]
[1646203013897,3.907,102.45,102.35,0.19625324]
[1646203014197,71.876,102.46,102.36,122.5694]
[1646203014396,48.10847809,102.45,102.36,26.1894]
[1646203014897,48.10847809,102.45,102.37,96.38]
[1646203015299,48.10847809,102.45,102.36,26.1894]
[1646203015499,88.79352326,102.45,102.36,19.6494]
[1646203015698,88.79352326,102.45,102.36,14.6494]
[1646203016497,84.6302115,102.45,102.36,14.6494]
[1646203016698,82.85407904,102.45,102.36,14.6494]
[1646203016899,103.44602326,102.45,102.36,14.6494]
[1646203020304,107.35202326,102.45,102.36,14.6494]
[1646203020506,203.73202326,102.45,102.36,14.6494]
[1646203020710,96.38,102.44,102.34,62.994]
[1646203020907,49.99871017,102.43,102.34,62.994]
[1646203021111,90.68375534,102.43,102.34,62.994]
[1646203021509,53.90471017,102.43,102.34,62.994]
[1646203021807,49.99871017,102.43,102.34,62.994]
[1646203024030,49.99871017,102.43,102.34,14.6552]
[1646203024236,51.60075413,102.43,102.34,14.6552]
[1646203024431,49.99871017,102.43,102.34,14.6552]
[1646203024632,53.90471017,102.43,102.34,14.6552]
[1646203025232,68.56011017,102.43,102.34,14.6552]
[1646203025432,90.72640593,102.43,102.34,14.6552]
[1646203026031,86.82040593,102.43,102.34,14.6552]
[1646203026433,184.92604198,102.43,102.34,14.6552]
[1646203027134,88.54604198,102.43,102.34,14.6552]
[1646203027334,3.906,102.42,102.34,14.6552]
[1646203027533,52.06747792,102.41,102.34,14.6552]
[1646203027940,55.87645028,102.41,102.32,49.4305]
[1646203028532,152.25645028,102.41,102.32,49.4305]
[1646203028734,174.42274604,102.41,102.29,24.6253]
[1646203028934,96.38,102.39,102.3,22.8821]
[1646203029132,51.38229646,102.38,102.3,37.5435]
[1646203030242,51.38229646,102.38,102.3,133.9235]
[1646203030844,51.38229646,102.38,102.3,37.5435]
[1646203033670,51.38229646,102.38,102.3,133.9235]
[1646203034269,51.38229646,102.38,102.3,37.5435]
[1646203035570,51.38229646,102.38,102.3,136.47254003]
[1646203035775,51.38229646,102.38,102.3,40.09254003]
[1646203035980,51.38229646,102.38,102.3,37.5435]
[1646203036374,59.57929646,102.38,102.3,37.5435]
[1646203036974,59.57929646,102.38,102.3,49.0835]
[1646203037173,8.197,102.38,102.3,148.01254003]
[1646203037372,47.6044,102.4,102.3,148.01254003]
[1646203037572,47.6044,102.4,102.3,167.81162742]
[1646203038179,47.6044,102.4,102.3,181.22854089]
[1646203038477,47.6044,102.4,102.3,186.22854089]
[1646203038680,8.908,102.42,102.3,186.22854089]
[1646203038877,26.736,102.43,102.3,259.83255288]
[1646203039076,22.7882,102.44,102.32,96.38]
[1646203039277,22.7882,102.44,102.34,96.38]
[1646203039476,22.7882,102.44,102.35,107.92]
[1646203039678,72.51167063,102.44,102.35,110.46904003]
[1646203040076,72.51167063,102.44,102.36,2.54904003]
[1646203040276,72.51167063,102.44,102.37,11.54]
[1646203043781,72.51167063,102.44,102.36,14.6496]
[1646203043782,74.34720309,102.44,102.35,36.5007]
[1646203043981,74.34720309,102.44,102.35,24.9607]
[1646203044181,170.72720309,102.44,102.36,11.54]
[1646203044382,14.6552,102.43,102.35,36.5007]
[1646203044581,151.00465604,102.42,102.35,11.54]
[1646203044782,151.00465604,102.42,102.33,36.372]
[1646203044982,151.00465604,102.42,102.34,11.54]
[1646203045185,149.34750044,102.42,102.34,13.2777559]
[1646203046081,14.6579,102.41,102.34,13.2777559]
[1646203046284,43.01643159,102.4,102.34,13.2777559]
[1646203047084,14.6579,102.41,102.34,13.2777559]
[1646203047282,68.16546483,102.43,102.34,13.2777559]
[1646203048083,50.78798083,102.42,102.34,13.2777559]
[1646203049085,50.78798083,102.42,102.34,27.9326559]
[1646203052186,50.78798083,102.42,102.34,42.6013559]
[1646203052586,50.78798083,102.42,102.34,138.9813559]
[1646203053187,50.78798083,102.42,102.34,42.6013559]
[1646203054190,50.78798083,102.42,102.34,13.2777559]
[1646203054391,147.16798083,102.42,102.34,11.54]
[1646203054590,191.54121009,102.42,102.33,24.832]
[1646203054792,14.6595,102.4,102.33,24.832]
[1646203055191,155.41272926,102.4,102.32,23.13]
[1646203055391,154.53741291,102.39,102.29,36.1653]
[1646203055591,178.05641291,102.39,102.29,24.8767]
[1646203055791,227.8692152,102.39,102.29,24.8767]
[1646203055993,230.08608804,102.39,102.29,24.8767]
[1646203056393,235.08608804,102.39,102.29,35.52152077]
[1646203056792,246.62608804,102.39,102.29,35.52152077]
[1646203056993,14.6623,102.38,102.29,24.8767]
[1646203057396,111.0423,102.38,102.27,122.5839]
[1646203057602,23.1459,102.37,102.28,11.54]
[1646203057900,47.61622677,102.36,102.29,11.17531276]
[1646203060901,47.61622677,102.36,102.29,37.37701276]
[1646203063706,3.908,102.37,102.29,136.30605279]
[1646203063905,46.4663,102.4,102.29,39.92605279]
[1646203064104,3.908,102.39,102.29,62.64495279]
[1646203064605,57.68231369,102.38,102.29,62.64495279]
[1646203065104,57.68231369,102.38,102.3,96.38]
[1646203065307,57.68231369,102.38,102.31,28.62041441]
[1646203067105,65.0337,102.4,102.31,28.62041441]
[1646203067925,65.0337,102.4,102.31,42.99961441]
[1646203068125,50.27957403,102.39,102.31,42.99961441]
[1646203068724,50.3743,102.4,102.31,139.37961441]
[1646203068925,46.4663,102.4,102.31,141.92865444]
[1646203069127,46.4663,102.4,102.31,146.92865444]
[1646203071028,46.4663,102.4,102.31,42.99961441]
[1646203071230,48.2309783,102.4,102.31,31.45961441]
[1646203071428,46.4663,102.4,102.31,31.45961441]
[1646203071828,60.78694693,102.39,102.31,31.45961441]
[1646203076234,46.4663,102.4,102.31,31.45961441]
[1646203076433,46.4663,102.4,102.31,42.99961441]
[1646203076634,46.4663,102.4,102.31,66.61821441]
[1646203077236,99.55423675,102.4,102.31,66.61821441]
[1646203077834,99.55423675,102.4,102.31,52.23901441]
[1646203078034,99.55423675,102.4,102.31,40.69901441]
[1646203078435,99.55423675,102.4,102.31,26.04091441]
[1646203079034,195.93423675,102.4,102.31,26.04091441]
[1646203079237,14.6608,102.39,102.31,26.04091441]
[1646203079436,198.151494,102.4,102.31,26.04091441]
[1646203079635,198.151494,102.4,102.31,2.42231441]
[1646203079840,199.87744911,102.4,102.31,2.42231441]
[1646203080036,220.09309487,102.4,102.31,2.42231441]
[1646203080236,231.63309487,102.4,102.31,2.42231441]
[1646203081038,111.0422,102.38,102.29,14.6614]
[1646203081237,111.0422,102.38,102.28,23.171]
[1646203081437,23.4874,102.37,102.28,23.171]
[1646203082039,43.87033615,102.36,102.29,10.55764349]
[1646203088849,43.87033615,102.36,102.29,106.93764349]
[1646203089051,23.4874,102.37,102.29,121.02668352]
[1646203089256,23.9439,102.4,102.3,0.23416163]
[1646203089450,23.9439,102.4,102.3,35.6598]
[1646203089652,25.8704467,102.4,102.31,2.54904003]
[1646203090050,55.83126595,102.39,102.32,3.03998368]
[1646203091052,40.5480082,102.4,102.32,3.03998368]
[1646203091254,23.9439,102.4,102.32,3.03998368]
[1646203091653,23.9439,102.4,102.32,17.12902371]